[Event "GrandPrix_29.05"]
[Site "Chess.com"]
[Date "2020.05.29"]
[Round "5"]
[White "esskeettit"]
[Black "2346PL"]
[Result "0-1"]
[WhiteElo "2098"]
[BlackElo "2077"]
[TimeControl "600+2"]
[EndTime "11:25:23 PDT"]
[Termination "2346PL won by checkmate"]

1. d4 {[%clk 0:10:01.9]} 1... f5 {[%clk 0:10:00.8]} 2. g3 {[%clk 0:10:02.3]}
2... Nf6 {[%clk 0:10:02.2]} 3. Bg2 {[%clk 0:10:03.1]} 3... g6 {[%clk 0:10:03.8]}
4. Nh3 {[%clk 0:10:04.2]} 4... e6 {[%clk 0:10:02.6]} 5. Nf4 {[%clk 0:10:04.6]}
5... d6 {[%clk 0:10:03.6]} 6. Nc3 {[%clk 0:09:33.9]} 6... Bg7 {[%clk 0:09:45.1]}
7. h4 {[%clk 0:08:51.9]} 7... e5 {[%clk 0:09:38.8]} 8. Nfd5 {[%clk 0:08:30.4]}
8... c6 {[%clk 0:09:28.1]} 9. Nxf6+ {[%clk 0:08:26.9]} 9... Qxf6 {[%clk
0:09:30]} 10. d5 {[%clk 0:08:15.5]} 10... c5 {[%clk 0:09:16.9]} 11. Bg5 {[%clk
0:07:50.2]} 11... Qf7 {[%clk 0:09:12.7]} 12. e4 {[%clk 0:07:12.4]} 12... h6
{[%clk 0:09:07.6]} 13. Bd2 {[%clk 0:07:12.9]} 13... f4 {[%clk 0:09:03.3]} 14.
gxf4 {[%clk 0:06:42.9]} 14... exf4 {[%clk 0:09:05.2]} 15. Nb5 {[%clk 0:06:44]}
15... Qd7 {[%clk 0:08:29]} 16. c4 {[%clk 0:06:44]} 16... O-O {[%clk 0:08:09.5]}
17. Qc2 {[%clk 0:06:41.3]} 17... a6 {[%clk 0:08:04.1]} 18. Nc3 {[%clk
0:06:22.1]} 18... Qe7 {[%clk 0:07:55.3]} 19. Bf3 {[%clk 0:06:12.2]} 19... Nd7
{[%clk 0:07:55.1]} 20. O-O-O {[%clk 0:06:00.1]} 20... Ne5 {[%clk 0:07:55.9]} 21.
Be2 {[%clk 0:06:01.4]} 21... Bd7 {[%clk 0:07:34.6]} 22. Kb1 {[%clk 0:05:39.7]}
22... b5 {[%clk 0:07:22.9]} 23. cxb5 {[%clk 0:05:37.5]} 23... axb5 {[%clk
0:07:23.7]} 24. Nxb5 {[%clk 0:05:38.5]} 24... Bxb5 {[%clk 0:06:29.1]} 25. Bxb5
{[%clk 0:05:34.9]} 25... Rfb8 {[%clk 0:06:30.6]} 26. a4 {[%clk 0:05:35.1]} 26...
Qa7 {[%clk 0:06:04.7]} 27. Qb3 {[%clk 0:05:31.7]} 27... c4 {[%clk 0:05:44.9]}
28. Qa3 {[%clk 0:05:15.1]} 28... Qd4 {[%clk 0:04:27.4]} 29. Qb4 {[%clk
0:03:30.4]} 29... Qxe4+ {[%clk 0:04:18.9]} 30. Ka2 {[%clk 0:03:19.9]} 30... Nd3
{[%clk 0:03:57.5]} 31. Qxc4 {[%clk 0:02:32.9]} 31... Qxc4+ {[%clk 0:03:56.2]}
32. Bxc4 {[%clk 0:02:34.8]} 32... Rxa4+ {[%clk 0:03:57.1]} 33. Kb1 {[%clk
0:02:35.9]} 33... Rxb2# {[%clk 0:03:57.9]} 0-1

[Event "GrandPrix_29.05"]
[Site "Chess.com"]
[Date "2020.05.29"]
[Round "5"]
[White "Paulz64"]
[Black "am00ss00"]
[Result "1-0"]
[WhiteElo "2122"]
[BlackElo "2082"]
[TimeControl "600+2"]
[EndTime "11:25:32 PDT"]
[Termination "Paulz64 won by resignation"]

1. d4 {[%clk 0:09:59.8]} 1... d5 {[%clk 0:10:00.3]} 2. c4 {[%clk 0:10:00.3]}
2... e6 {[%clk 0:10:01]} 3. Nc3 {[%clk 0:10:00.8]} 3... f5 {[%clk 0:09:59.3]} 4.
Bf4 {[%clk 0:10:01.2]} 4... c6 {[%clk 0:09:58.6]} 5. e3 {[%clk 0:10:02.3]} 5...
Nf6 {[%clk 0:09:59.6]} 6. Nf3 {[%clk 0:10:01.7]} 6... Bd6 {[%clk 0:10:00.5]} 7.
Bd3 {[%clk 0:10:02.7]} 7... O-O {[%clk 0:10:01.2]} 8. O-O {[%clk 0:10:01.7]}
8... Ne4 {[%clk 0:10:01.3]} 9. Qc2 {[%clk 0:10:00.9]} 9... Qe7 {[%clk
0:10:01.4]} 10. Rab1 {[%clk 0:09:46.6]} 10... Bd7 {[%clk 0:10:01.5]} 11. Bxd6
{[%clk 0:09:25.2]} 11... Qxd6 {[%clk 0:10:00.6]} 12. b4 {[%clk 0:09:26.8]} 12...
Be8 {[%clk 0:09:56.8]} 13. b5 {[%clk 0:09:26.4]} 13... Bh5 {[%clk 0:09:23.2]}
14. Ne5 {[%clk 0:09:17.7]} 14... Nd7 {[%clk 0:09:19.8]} 15. bxc6 {[%clk
0:08:33.6]} 15... bxc6 {[%clk 0:08:11.7]} 16. Nxd7 {[%clk 0:08:21.1]} 16... Qxd7
{[%clk 0:08:11.9]} 17. Na4 {[%clk 0:08:02.5]} 17... Rfb8 {[%clk 0:07:54]} 18. f3
{[%clk 0:07:49.5]} 18... Nd6 {[%clk 0:07:49.7]} 19. Nc5 {[%clk 0:07:27.3]} 19...
Qe7 {[%clk 0:07:41.1]} 20. Qc3 {[%clk 0:06:38.3]} 20... Rb6 {[%clk 0:07:11.7]}
21. Na4 {[%clk 0:06:06.9]} 21... Rbb8 {[%clk 0:06:55.4]} 22. Rfc1 {[%clk
0:05:37.1]} 22... Be8 {[%clk 0:06:29.4]} 23. c5 {[%clk 0:05:17.9]} 23... Nb5
{[%clk 0:06:00.6]} 24. Qd2 {[%clk 0:05:05.2]} 24... g6 {[%clk 0:05:52.1]} 25.
Nc3 {[%clk 0:04:44.5]} 25... Na3 {[%clk 0:05:39.7]} 26. Rb3 {[%clk 0:04:30.9]}
26... Rxb3 {[%clk 0:05:16.6]} 27. axb3 {[%clk 0:04:31.3]} 27... e5 {[%clk
0:05:14.5]} 28. Ra1 {[%clk 0:04:28.9]} 28... Nb5 {[%clk 0:04:59.6]} 29. Bxb5
{[%clk 0:04:26.2]} 29... cxb5 {[%clk 0:05:01.5]} 30. Nxd5 {[%clk 0:04:27.2]}
30... Qb7 {[%clk 0:04:20.2]} 31. dxe5 {[%clk 0:04:22.3]} 31... Bf7 {[%clk
0:04:07.9]} 32. Nf6+ {[%clk 0:04:16.8]} 32... Kg7 {[%clk 0:04:08.5]} 33. b4
{[%clk 0:04:18.1]} 33... Qc7 {[%clk 0:04:04.2]} 34. Qd6 {[%clk 0:04:10.1]} 34...
Rc8 {[%clk 0:03:45.2]} 35. Nd7 {[%clk 0:03:52.2]} 35... Qb7 {[%clk 0:03:22.6]}
36. Qf6+ {[%clk 0:03:49.2]} 36... Kg8 {[%clk 0:03:22.1]} 37. e6 {[%clk
0:03:49.5]} 1-0

[Event "GrandPrix_29.05"]
[Site "Chess.com"]
[Date "2020.05.29"]
[Round "5"]
[White "TheJoker64"]
[Black "WhiteCapital80"]
[Result "1/2-1/2"]
[WhiteElo "2401"]
[BlackElo "2282"]
[TimeControl "600+2"]
[EndTime "11:25:39 PDT"]
[Termination "Game drawn by agreement"]

1. e4 {[%clk 0:10:01.9]} 1... e6 {[%clk 0:09:58.7]} 2. d4 {[%clk 0:10:01.9]}
2... d5 {[%clk 0:09:59.5]} 3. Bd3 {[%clk 0:10:02.5]} 3... dxe4 {[%clk
0:09:52.2]} 4. Bxe4 {[%clk 0:10:03.3]} 4... c5 {[%clk 0:09:53.1]} 5. Ne2 {[%clk
0:09:55.5]} 5... Nf6 {[%clk 0:09:51.9]} 6. Bf3 {[%clk 0:09:55.8]} 6... Nc6
{[%clk 0:09:49.6]} 7. Be3 {[%clk 0:09:53.9]} 7... cxd4 {[%clk 0:09:44.1]} 8.
Nxd4 {[%clk 0:09:54.5]} 8... Nd5 {[%clk 0:08:13.6]} 9. Nxc6 {[%clk 0:09:14.5]}
9... bxc6 {[%clk 0:08:13.1]} 10. O-O {[%clk 0:09:13]} 10... Bd6 {[%clk
0:07:27.7]} 11. c4 {[%clk 0:08:48]} 11... Qh4 {[%clk 0:07:22.5]} 12. g3 {[%clk
0:08:26.5]} 12... Qxc4 {[%clk 0:07:22.3]} 13. Nd2 {[%clk 0:08:12.3]} 13... Qb5
{[%clk 0:07:15.5]} 14. a4 {[%clk 0:06:50.3]} 14... Qb4 {[%clk 0:06:55.7]} 15.
Ne4 {[%clk 0:06:27.1]} 15... Be7 {[%clk 0:06:39.8]} 16. Qc2 {[%clk 0:06:19.5]}
16... O-O {[%clk 0:06:30.3]} 17. Bd2 {[%clk 0:05:57.4]} 17... Qb6 {[%clk
0:05:18.9]} 18. a5 {[%clk 0:05:53.5]} 18... Qb5 {[%clk 0:05:12.4]} 19. Rfc1
{[%clk 0:05:12.2]} 19... Rb8 {[%clk 0:05:02.8]} 20. Nc3 {[%clk 0:04:18.7]} 20...
Qb3 {[%clk 0:04:13.2]} 21. Qe4 {[%clk 0:03:19.5]} 21... Ba6 {[%clk 0:03:52.5]}
22. Na4 {[%clk 0:03:02.6]} 22... Bb5 {[%clk 0:03:18]} 23. Bd1 {[%clk 0:02:45.4]}
23... Qd3 {[%clk 0:03:15.9]} 24. Qxd3 {[%clk 0:02:43.7]} 24... Bxd3 {[%clk
0:03:15.1]} 25. Rxc6 {[%clk 0:02:45.3]} 1/2-1/2

[Event "GrandPrix_29.05"]
[Site "Chess.com"]
[Date "2020.05.29"]
[Round "5"]
[White "Chepaschess"]
[Black "VMikhalevski"]
[Result "0-1"]
[WhiteElo "2496"]
[BlackElo "2570"]
[TimeControl "600+2"]
[EndTime "11:25:50 PDT"]
[Termination "VMikhalevski won by resignation"]

1. Nf3 {[%clk 0:10:01.9]} 1... Nf6 {[%clk 0:09:55.1]} 2. c4 {[%clk 0:10:02.7]}
2... g6 {[%clk 0:09:52.7]} 3. Nc3 {[%clk 0:10:03.5]} 3... d5 {[%clk 0:09:53.9]}
4. cxd5 {[%clk 0:10:02.3]} 4... Nxd5 {[%clk 0:09:54.6]} 5. e4 {[%clk 0:10:02.6]}
5... Nxc3 {[%clk 0:09:52.4]} 6. dxc3 {[%clk 0:10:04.5]} 6... Qxd1+ {[%clk
0:09:52]} 7. Kxd1 {[%clk 0:10:04.7]} 7... f6 {[%clk 0:09:51.5]} 8. h4 {[%clk
0:10:05.5]} 8... h5 {[%clk 0:09:40.3]} 9. e5 {[%clk 0:10:02.3]} 9... Nc6 {[%clk
0:09:17.7]} 10. Bd3 {[%clk 0:09:37.3]} 10... Kf7 {[%clk 0:08:38.7]} 11. Re1
{[%clk 0:09:26.4]} 11... Bg4 {[%clk 0:08:33.3]} 12. Kc2 {[%clk 0:09:18.9]} 12...
Rd8 {[%clk 0:08:01.7]} 13. Bf4 {[%clk 0:08:20.3]} 13... Bh6 {[%clk 0:07:56.6]}
14. Bxh6 {[%clk 0:07:13.1]} 14... Rxh6 {[%clk 0:07:55.4]} 15. Be4 {[%clk
0:07:10.2]} 15... Bf5 {[%clk 0:07:05.1]} 16. Bxf5 {[%clk 0:06:59.1]} 16... gxf5
{[%clk 0:07:05.7]} 17. e6+ {[%clk 0:07:00.5]} 17... Ke8 {[%clk 0:06:56]} 18. b4
{[%clk 0:05:35.7]} 18... Rg6 {[%clk 0:06:55.2]} 19. g3 {[%clk 0:05:35.2]} 19...
Rg4 {[%clk 0:06:37.4]} 20. b5 {[%clk 0:05:24.9]} 20... Na5 {[%clk 0:06:36.9]}
21. Nd4 {[%clk 0:05:20.1]} 21... Rd5 {[%clk 0:06:16.2]} 22. Ne2 {[%clk
0:04:28.9]} 22... Nc4 {[%clk 0:05:55.2]} 23. Nf4 {[%clk 0:02:36.7]} 23... Rxb5
{[%clk 0:05:39.6]} 24. Kd3 {[%clk 0:02:29.8]} 24... Ne5+ {[%clk 0:05:29.4]} 25.
Kc2 {[%clk 0:02:27.1]} 25... Nc4 {[%clk 0:05:02.9]} 26. Kd3 {[%clk 0:02:27.3]}
26... Rc5 {[%clk 0:04:55.5]} 27. Rab1 {[%clk 0:02:20.4]} 27... b6 {[%clk
0:04:19.3]} 28. Nxh5 {[%clk 0:02:12.4]} 28... Rd5+ {[%clk 0:04:18.2]} 29. Kc2
{[%clk 0:01:57.3]} 29... Na3+ {[%clk 0:04:04.7]} 0-1

[Event "GrandPrix_29.05"]
[Site "Chess.com"]
[Date "2020.05.29"]
[Round "5"]
[White "Kopytkin"]
[Black "AlexPapasimakopoulos"]
[Result "0-1"]
[WhiteElo "2204"]
[BlackElo "2468"]
[TimeControl "600+2"]
[EndTime "11:26:00 PDT"]
[Termination "AlexPapasimakopoulos won on time"]

1. e4 {[%clk 0:10:01.9]} 1... e6 {[%clk 0:10:00]} 2. d4 {[%clk 0:10:01.4]} 2...
d5 {[%clk 0:10:00.8]} 3. e5 {[%clk 0:10:02.8]} 3... b6 {[%clk 0:10:00.2]} 4. c3
{[%clk 0:09:56.5]} 4... Qd7 {[%clk 0:09:52.7]} 5. Nf3 {[%clk 0:09:54.8]} 5...
Ne7 {[%clk 0:09:51.8]} 6. a4 {[%clk 0:09:21.2]} 6... a5 {[%clk 0:09:51.9]} 7.
Na3 {[%clk 0:09:09.3]} 7... Ba6 {[%clk 0:09:50.8]} 8. Bxa6 {[%clk 0:09:09.1]}
8... Nxa6 {[%clk 0:09:49]} 9. O-O {[%clk 0:09:10.6]} 9... c5 {[%clk 0:09:12.6]}
10. Nb5 {[%clk 0:09:07.3]} 10... Nc6 {[%clk 0:09:13.7]} 11. Qe2 {[%clk
0:08:49.4]} 11... Nc7 {[%clk 0:09:11.3]} 12. Rd1 {[%clk 0:08:17.6]} 12... cxd4
{[%clk 0:08:42.6]} 13. Nfxd4 {[%clk 0:07:45.4]} 13... Nxd4 {[%clk 0:08:41.3]}
14. Nxd4 {[%clk 0:07:37.4]} 14... Bc5 {[%clk 0:08:41.1]} 15. Qg4 {[%clk
0:07:26.5]} 15... O-O {[%clk 0:08:41.8]} 16. Bg5 {[%clk 0:06:34.3]} 16... Kh8
{[%clk 0:08:32.3]} 17. Rd3 {[%clk 0:06:21]} 17... f6 {[%clk 0:08:29.2]} 18. Bf4
{[%clk 0:06:11.7]} 18... Bxd4 {[%clk 0:08:17.1]} 19. Rxd4 {[%clk 0:04:49.7]}
19... f5 {[%clk 0:08:16.7]} 20. Qd1 {[%clk 0:04:40.2]} 20... b5 {[%clk
0:08:12.4]} 21. h4 {[%clk 0:04:26.5]} 21... Rfb8 {[%clk 0:07:46]} 22. h5 {[%clk
0:04:15.6]} 22... h6 {[%clk 0:07:46.1]} 23. g4 {[%clk 0:03:39.2]} 23... fxg4
{[%clk 0:07:44.9]} 24. Qxg4 {[%clk 0:03:39.3]} 24... Rf8 {[%clk 0:07:46.3]} 25.
Bg3 {[%clk 0:02:48.6]} 25... Rf5 {[%clk 0:07:35.7]} 26. Rf4 {[%clk 0:02:40.8]}
26... Raf8 {[%clk 0:07:33.2]} 27. Rxf5 {[%clk 0:02:24.6]} 27... Rxf5 {[%clk
0:07:35.1]} 28. b3 {[%clk 0:01:59.9]} 28... Na6 {[%clk 0:07:15.1]} 29. axb5
{[%clk 0:01:47.1]} 29... Qxb5 {[%clk 0:07:17]} 30. c4 {[%clk 0:01:15.6]} 30...
dxc4 {[%clk 0:06:59.2]} 31. bxc4 {[%clk 0:00:59.6]} 31... Qc5 {[%clk 0:06:57.6]}
32. Rd1 {[%clk 0:00:55]} 32... Qe7 {[%clk 0:06:33.9]} 33. Ra1 {[%clk 0:00:17.1]}
33... Qc7 {[%clk 0:06:20.6]} 34. Qg6 {[%clk 0:00:13.9]} 34... Nc5 {[%clk
0:06:17.2]} 35. Rb1 {[%clk 0:00:07.8]} 35... a4 {[%clk 0:06:08.8]} 0-1

[Event "GrandPrix_29.05"]
[Site "Chess.com"]
[Date "2020.05.29"]
[Round "5"]
[White "TheFireChess"]
[Black "NikolaGry"]
[Result "1/2-1/2"]
[WhiteElo "2209"]
[BlackElo "2039"]
[TimeControl "600+2"]
[EndTime "11:26:18 PDT"]
[Termination "Game drawn by agreement"]

1. e4 {[%clk 0:09:58.5]} 1... e5 {[%clk 0:09:59.4]} 2. Nf3 {[%clk 0:09:59.1]}
2... d6 {[%clk 0:10:00.4]} 3. d4 {[%clk 0:09:58.3]} 3... exd4 {[%clk 0:10:01.3]}
4. Nxd4 {[%clk 0:10:00.2]} 4... Nf6 {[%clk 0:10:02.3]} 5. Nc3 {[%clk 0:10:01]}
5... g6 {[%clk 0:10:03.4]} 6. Be3 {[%clk 0:10:01.6]} 6... Bg7 {[%clk 0:10:02.6]}
7. f3 {[%clk 0:10:03]} 7... O-O {[%clk 0:10:02.6]} 8. Qd2 {[%clk 0:10:04.4]}
8... Nc6 {[%clk 0:09:52.9]} 9. O-O-O {[%clk 0:10:03]} 9... Nxd4 {[%clk
0:09:50.1]} 10. Bxd4 {[%clk 0:10:04.9]} 10... Be6 {[%clk 0:09:50.8]} 11. g4
{[%clk 0:10:00.6]} 11... c5 {[%clk 0:09:44.8]} 12. Be3 {[%clk 0:09:54.8]} 12...
Qa5 {[%clk 0:09:36.8]} 13. a3 {[%clk 0:09:50.7]} 13... Rfd8 {[%clk 0:09:07.8]}
14. Nd5 {[%clk 0:08:44]} 14... Qxd2+ {[%clk 0:09:00.4]} 15. Rxd2 {[%clk
0:08:43.6]} 15... Bxd5 {[%clk 0:08:44.2]} 16. exd5 {[%clk 0:08:45.5]} 16... Re8
{[%clk 0:08:44.6]} 17. Bf4 {[%clk 0:07:12.1]} 17... Re1+ {[%clk 0:08:32.3]} 18.
Rd1 {[%clk 0:07:12.7]} 18... Rxd1+ {[%clk 0:08:32.8]} 19. Kxd1 {[%clk
0:07:14.6]} 19... Nxd5 {[%clk 0:08:13.8]} 20. Bxd6 {[%clk 0:06:42.2]} 20... Ne3+
{[%clk 0:06:26.6]} 21. Ke2 {[%clk 0:06:33.4]} 21... Nxc2 {[%clk 0:05:01.9]} 22.
Bxc5 {[%clk 0:06:09.2]} 22... Bxb2 {[%clk 0:04:22.1]} 23. a4 {[%clk 0:05:50.8]}
23... b6 {[%clk 0:04:13.8]} 24. Kd2 {[%clk 0:05:28.9]} 24... bxc5 {[%clk
0:03:27.3]} 25. Kxc2 {[%clk 0:05:28]} 25... Bd4 {[%clk 0:03:26]} 26. Bc4 {[%clk
0:05:25.3]} 26... Rb8 {[%clk 0:03:22.6]} 27. Bb5 {[%clk 0:04:49.8]} 27... Kg7
{[%clk 0:03:10.4]} 28. Re1 {[%clk 0:04:45.7]} 28... Rb6 {[%clk 0:02:48.6]} 29.
Kd3 {[%clk 0:03:56.8]} 29... Re6 {[%clk 0:02:38.3]} 30. Re4 {[%clk 0:03:43.2]}
30... Rxe4 {[%clk 0:02:27.3]} 31. Kxe4 {[%clk 0:03:45.1]} 31... Bg1 {[%clk
0:01:51.3]} 1/2-1/2

[Event "GrandPrix_29.05"]
[Site "Chess.com"]
[Date "2020.05.29"]
[Round "5"]
[White "Cocolino12"]
[Black "eristeski7"]
[Result "0-1"]
[WhiteElo "2288"]
[BlackElo "2099"]
[TimeControl "600+2"]
[EndTime "11:26:18 PDT"]
[Termination "eristeski7 won by checkmate"]

1. e4 {[%clk 0:10:01.9]} 1... c5 {[%clk 0:09:59]} 2. Nf3 {[%clk 0:10:02.1]} 2...
Nc6 {[%clk 0:10:00.1]} 3. c3 {[%clk 0:10:02.6]} 3... Nf6 {[%clk 0:10:00.5]} 4.
e5 {[%clk 0:10:03.7]} 4... Nd5 {[%clk 0:10:01.8]} 5. d4 {[%clk 0:10:05.2]} 5...
cxd4 {[%clk 0:10:03.7]} 6. cxd4 {[%clk 0:10:06.6]} 6... d6 {[%clk 0:10:05.2]} 7.
Bc4 {[%clk 0:10:07.8]} 7... Nb6 {[%clk 0:10:06.4]} 8. Bb5 {[%clk 0:10:07.8]}
8... Bd7 {[%clk 0:10:06.8]} 9. Nc3 {[%clk 0:10:06.1]} 9... e6 {[%clk 0:09:44.8]}
10. O-O {[%clk 0:10:05.2]} 10... Be7 {[%clk 0:09:44]} 11. Bd3 {[%clk 0:10:01]}
11... d5 {[%clk 0:09:27.6]} 12. a3 {[%clk 0:09:55.3]} 12... O-O {[%clk
0:09:04.3]} 13. Bc2 {[%clk 0:09:50.9]} 13... f6 {[%clk 0:08:34]} 14. exf6 {[%clk
0:09:48.6]} 14... Bxf6 {[%clk 0:08:33.2]} 15. Qd3 {[%clk 0:09:49.6]} 15... g6
{[%clk 0:08:32.7]} 16. Bh6 {[%clk 0:09:49]} 16... Bg7 {[%clk 0:08:31.5]} 17.
Bxg7 {[%clk 0:09:47.9]} 17... Kxg7 {[%clk 0:08:33.4]} 18. Rae1 {[%clk
0:09:43.7]} 18... Qf6 {[%clk 0:08:13.8]} 19. h4 {[%clk 0:09:28.7]} 19... Rae8
{[%clk 0:07:51.1]} 20. b3 {[%clk 0:08:49.3]} 20... e5 {[%clk 0:07:02.5]} 21.
dxe5 {[%clk 0:08:48.4]} 21... Nxe5 {[%clk 0:07:04.4]} 22. Nxe5 {[%clk 0:08:47]}
22... Rxe5 {[%clk 0:07:03.3]} 23. Qd4 {[%clk 0:08:01.7]} 23... Rxe1 {[%clk
0:06:35.9]} 24. Qxf6+ {[%clk 0:08:02.3]} 24... Kxf6 {[%clk 0:06:37.8]} 25. Rxe1
{[%clk 0:08:03.1]} 25... Rc8 {[%clk 0:06:39.3]} 26. Re3 {[%clk 0:07:59.8]} 26...
d4 {[%clk 0:06:26.7]} 27. Ne4+ {[%clk 0:07:32.8]} 27... Ke5 {[%clk 0:05:38.8]}
28. Re2 {[%clk 0:07:13.8]} 28... Rxc2 {[%clk 0:05:37.4]} 29. Rxc2 {[%clk
0:07:15.7]} 29... Kxe4 {[%clk 0:05:38.8]} 30. Rc7 {[%clk 0:07:02.9]} 30... Bb5
{[%clk 0:05:23.7]} 31. f3+ {[%clk 0:06:51.9]} 31... Ke3 {[%clk 0:05:21.7]} 32.
Re7+ {[%clk 0:06:47.9]} 32... Kd2 {[%clk 0:05:22.1]} 33. Rxb7 {[%clk 0:06:47.6]}
33... d3 {[%clk 0:05:10.1]} 34. Rxa7 {[%clk 0:06:47.1]} 34... Kc2 {[%clk
0:05:08.1]} 35. Rc7+ {[%clk 0:06:24.1]} 35... Bc4 {[%clk 0:04:52.3]} 36. bxc4
{[%clk 0:05:53.1]} 36... d2 {[%clk 0:04:51.9]} 37. c5 {[%clk 0:05:53.6]} 37...
d1=Q+ {[%clk 0:04:48.8]} 38. Kh2 {[%clk 0:05:53.3]} 38... Nc4 {[%clk 0:04:25.9]}
39. Rxh7 {[%clk 0:05:52.1]} 39... Qd5 {[%clk 0:04:16.8]} 40. Rh6 {[%clk
0:05:17.8]} 40... Qe5+ {[%clk 0:04:09.9]} 41. Kh3 {[%clk 0:05:13.1]} 41... Qf5+
{[%clk 0:04:08.8]} 42. Kg3 {[%clk 0:05:13]} 42... Nd2 {[%clk 0:03:36.6]} 43. c6
{[%clk 0:05:08.8]} 43... Qe5+ {[%clk 0:03:21.4]} 44. Kf2 {[%clk 0:05:04.9]}
44... Qd4+ {[%clk 0:03:18.6]} 45. Kg3 {[%clk 0:04:53.5]} 45... Nf1+ {[%clk
0:03:00.3]} 46. Kh3 {[%clk 0:04:53.6]} 46... Qd3 {[%clk 0:03:00]} 47. h5 {[%clk
0:04:32.3]} 47... Qf5+ {[%clk 0:02:58.3]} 48. g4 {[%clk 0:04:29.9]} 48... Qxf3+
{[%clk 0:02:57.5]} 49. Kh4 {[%clk 0:04:30.4]} 49... Qf6+ {[%clk 0:02:51.8]} 50.
Kh3 {[%clk 0:04:24]} 50... Qf2 {[%clk 0:02:49.7]} 51. c7 {[%clk 0:04:15.7]}
51... Qg3# {[%clk 0:02:47.9]} 0-1

[Event "GrandPrix_29.05"]
[Site "Chess.com"]
[Date "2020.05.29"]
[Round "5"]
[White "Zakaryan_David"]
[Black "Pidzsy"]
[Result "1-0"]
[WhiteElo "1428"]
[BlackElo "1978"]
[TimeControl "600+2"]
[EndTime "11:26:25 PDT"]
[Termination "Zakaryan_David won by resignation"]

1. d4 {[%clk 0:10:01.9]} 1... g6 {[%clk 0:09:57.1]} 2. c4 {[%clk 0:10:01.4]}
2... Bg7 {[%clk 0:09:58.3]} 3. e4 {[%clk 0:10:02]} 3... c5 {[%clk 0:09:56.5]} 4.
d5 {[%clk 0:10:02]} 4... e6 {[%clk 0:09:57.8]} 5. Nc3 {[%clk 0:10:02]} 5... exd5
{[%clk 0:09:58.7]} 6. cxd5 {[%clk 0:10:03.8]} 6... Nf6 {[%clk 0:09:57.6]} 7. Nf3
{[%clk 0:10:03.9]} 7... O-O {[%clk 0:09:57.7]} 8. Bd3 {[%clk 0:10:01.6]} 8... b5
{[%clk 0:09:46.1]} 9. Bxb5 {[%clk 0:09:51.7]} 9... Nxe4 {[%clk 0:09:45.9]} 10.
Nxe4 {[%clk 0:09:05.6]} 10... Qa5+ {[%clk 0:09:45.9]} 11. Nc3 {[%clk 0:07:52.1]}
11... Bxc3+ {[%clk 0:08:29.8]} 12. bxc3 {[%clk 0:07:54]} 12... Qxb5 {[%clk
0:08:31]} 13. Qb3 {[%clk 0:07:11.8]} 13... Ba6 {[%clk 0:06:08.4]} 14. Qxb5
{[%clk 0:07:08.1]} 14... Bxb5 {[%clk 0:06:10.3]} 15. Be3 {[%clk 0:07:08.4]}
15... d6 {[%clk 0:06:04.8]} 16. Nd2 {[%clk 0:06:57.1]} 16... Bd3 {[%clk
0:05:45.1]} 17. c4 {[%clk 0:06:23.1]} 17... f5 {[%clk 0:05:45.8]} 18. g3 {[%clk
0:06:14]} 18... Nd7 {[%clk 0:05:44.6]} 19. Rc1 {[%clk 0:06:11.7]} 19... Ne5
{[%clk 0:04:52.9]} 20. Rc3 {[%clk 0:05:42.5]} 20... Be4 {[%clk 0:04:53.4]} 21.
O-O {[%clk 0:05:12.7]} 21... Rab8 {[%clk 0:04:31.5]} 22. Bf4 {[%clk 0:04:56.2]}
22... Rb2 {[%clk 0:03:20.6]} 23. Nxe4 {[%clk 0:04:52.1]} 23... fxe4 {[%clk
0:03:20.1]} 24. Bxe5 {[%clk 0:04:54]} 24... dxe5 {[%clk 0:03:21.5]} 25. Re3
{[%clk 0:04:50.4]} 25... Rxa2 {[%clk 0:03:10.9]} 26. Rxe4 {[%clk 0:04:50.8]}
26... a5 {[%clk 0:03:03.9]} 27. Rxe5 {[%clk 0:04:48.4]} 27... a4 {[%clk
0:03:05.1]} 28. d6 {[%clk 0:04:46.1]} 28... Rd8 {[%clk 0:03:02.4]} 29. Rd1
{[%clk 0:04:40]} 29... a3 {[%clk 0:02:36.3]} 30. Rxc5 {[%clk 0:04:33.6]} 30...
Rb2 {[%clk 0:02:35.5]} 31. Ra5 {[%clk 0:04:30.4]} 31... a2 {[%clk 0:02:36.8]}
32. c5 {[%clk 0:04:26.4]} 32... Rb1 {[%clk 0:02:35.2]} 33. Rf1 {[%clk
0:04:26.7]} 33... Rb2 {[%clk 0:02:32.2]} 34. Kg2 {[%clk 0:04:23.6]} 34... Kf7
{[%clk 0:02:25.3]} 35. Ra1 {[%clk 0:04:19.3]} 35... Ke6 {[%clk 0:02:26.6]} 36.
R1xa2 {[%clk 0:04:18.2]} 36... Rxa2 {[%clk 0:02:28]} 37. Rxa2 {[%clk 0:04:18]}
37... Kd5 {[%clk 0:02:29.9]} 38. Rc2 {[%clk 0:04:09.5]} 38... Kc6 {[%clk
0:02:30.5]} 39. h4 {[%clk 0:04:09.6]} 39... h5 {[%clk 0:02:30.2]} 40. Kf3 {[%clk
0:04:09.2]} 40... Rf8+ {[%clk 0:02:31.1]} 41. Ke4 {[%clk 0:04:09.4]} 41... Rf5
{[%clk 0:02:32.3]} 42. Rd2 {[%clk 0:04:07.2]} 42... Rf8 {[%clk 0:02:22.1]} 43.
d7 {[%clk 0:04:05.4]} 43... Rd8 {[%clk 0:02:23.4]} 44. Rd5 {[%clk 0:04:04.1]}
1-0